fUSD/lending_fUSD_20240116
["ID","MTS","AMOUNT","RATE_DAILY","PERIOD"]
[311797616,1705408239349,-3030.74105079,0.00022497,2]
[311797617,1705408239358,-2835849.10551975,0.00022498,2]
[311797618,1705408239367,-505534.28686793,0.00022498,2]
[311797619,1705408239376,-1000.0,0.00022499,2]
[311797620,1705408239385,-245000.0,0.00022499,2]
[311797621,1705408239396,-1000.0,0.00022499,2]
[311797622,1705408239405,-588.44,0.000225,2]
[311797623,1705408239414,-294.22,0.000225,2]
[311797624,1705408239424,-151.89,0.000225,2]
[311797625,1705408239433,-314.46,0.000225,2]
[311797626,1705408239443,-418.24,0.000225,2]
[311797627,1705408239452,-150.0,0.000225,2]
[311797628,1705408239461,-294.22,0.000225,2]
[311797629,1705408239470,-12294.16339703,0.000225,2]
[311797630,1705408239479,-294.22,0.000225,2]
[311797631,1705408239489,-314.46,0.000225,2]
[311797632,1705408239497,-835.64,0.000225,2]
[311797633,1705408239506,-150.0,0.000225,2]
[311797634,1705408239515,-152.84,0.000225,2]
[311797635,1705408239524,-199.96,0.000225,2]
[311797636,1705408239533,-150.0,0.000225,2]
[311797637,1705408239542,-150.0,0.000225,2]
[311797638,1705408239551,-150.0,0.000225,2]
[311797639,1705408239561,-314.1,0.000225,2]
[311797640,1705408239569,-296.66,0.000225,2]
[311797641,1705408239578,-401.54,0.000225,2]
[311797642,1705408239587,-150.0,0.000225,2]
[311797643,1705408239597,-401.54,0.000225,2]
[311797644,1705408239606,-418.24,0.000225,2]
[311797645,1705408239615,-150.0,0.000225,2]
[311797646,1705408239625,-300.0,0.000225,2]
[311797647,1705408239634,-314.46,0.000225,2]
[311797648,1705408239643,-560.79,0.000225,2]
[311797649,1705408239653,-408.4,0.000225,2]
[311797650,1705408239664,-401.54,0.000225,2]
[311797651,1705408239673,-1500.0,0.000225,2]
[311797652,1705408239683,-314.46,0.000225,2]
[311797653,1705408239694,-150.0,0.000225,2]
[311797654,1705408239703,-401.54,0.000225,2]
[311797655,1705408239713,-294.22,0.000225,2]
[311797656,1705408239722,-408.4,0.000225,2]
[311797657,1705408239731,-418.24,0.000225,2]
[311797658,1705408239741,-314.46,0.000225,2]
[311797659,1705408239750,-150.0,0.000225,2]
[311797660,1705408239760,-294.22,0.000225,2]
[311797661,1705408239769,-150.0,0.000225,2]
[311797662,1705408239779,-401.54,0.000225,2]
[311797663,1705408239788,-408.4,0.000225,2]
[311797664,1705408239797,-150.0,0.000225,2]
[311797665,1705408239807,-418.24,0.000225,2]
[311797666,1705408239816,-294.22,0.000225,2]
[311797667,1705408239825,-194.12,0.000225,2]
[311797668,1705408239835,-400.58,0.000225,2]
[311797669,1705408239844,-418.24,0.000225,2]
[311797670,1705408239854,-294.22,0.000225,2]
[311797671,1705408239863,-314.46,0.000225,2]
[311797672,1705408239873,-408.4,0.000225,2]
[311797673,1705408239882,-150.0,0.000225,2]
[311797674,1705408239892,-803.08,0.000225,2]
[311797675,1705408239901,-300.0,0.000225,2]
[311797676,1705408239911,-151.0,0.00022515,7]
[311797677,1705408239920,-158.52,0.00022532,2]
[311797678,1705408239930,-333.90240098,0.00022535,2]
[311797679,1705408239939,-151.13,0.00022613,2]
[311797680,1705408239948,-5000.0,0.00022641,2]
[311797681,1705408239961,-150.21386034,0.00022649,2]
[311797682,1705408239970,-333.90240098,0.00022657,2]
[311797683,1705408239979,-319.97974698,0.0002267,2]
[311797684,1705408239989,-319.97974695,0.00022691,2]
[311797685,1705408239998,-158.52,0.00022698,2]
[311797686,1705408240007,-28489.0,0.000227,2]
[311797687,1705408240016,-2764.0,0.000227,2]
[311797688,1705408240026,-1879.0,0.000227,2]
[311797689,1705408240035,-319.97974695,0.00022712,2]
[311797690,1705408240044,-150.0,0.00022726,2]
[311797691,1705408240054,-150.0,0.0002273,2]
[311797692,1705408240063,-319.97974695,0.00022733,2]
[311797693,1705408240072,-269.07257754,0.00022734,2]
[311797694,1705408240080,-150.0,0.00022736,2]
[311797695,1705408240089,-150.0,0.00022736,2]
[311797696,1705408240099,-150.0,0.00022737,2]
[311797697,1705408240108,-713.66,0.00022741,2]
[311797698,1705408240117,-150.0,0.00022741,2]
[311797699,1705408240127,-3764.3041911,0.00022743,2]
[311797700,1705408240137,-71562.26497347,0.00022743,2]
[311797701,1705408240145,-84691.23932143,0.00022743,2]
[311797702,1705408240155,-11728.58939889,0.00022743,2]
[311797703,1705408240164,-9538.43089484,0.00022743,2]
[311797704,1705408240173,-151.0,0.00022743,7]
[311797705,1705408240182,-151.0,0.00022743,7]
[311797706,1705408240191,-151.0,0.00022743,7]
[311797707,1705408240200,-262.526066,0.00022743,7]
[311797708,1705408240209,-262.526066,0.00022743,7]
[311797709,1705408240218,-151.0,0.00022743,7]
[311797710,1705408240227,-312.558765,0.00022743,7]
[311797711,1705408240236,-312.558765,0.00022743,7]
[311797712,1705408240246,-387.078513,0.00022743,7]
[311797713,1705408240255,-387.078513,0.00022743,7]
[311797714,1705408240266,-151.0,0.00022743,7]
[311797715,1705408240277,-151.0,0.00022743,7]
[311797716,1705408240286,-204.15464862,0.00022743,2]
[311797717,1705408240295,-500.0,0.00022751,2]
[311797718,1705408240305,-319.97974695,0.00022754,2]
[311797719,1705408240315,-150.0,0.0002276,2]
[311797720,1705408240325,-150.0,0.00022763,2]
[311797721,1705408240335,-1079.70550939,0.00022768,2]
[311797722,1705408240345,-150.0,0.00022768,2]
[311797723,1705408240356,-4138.13863079,0.00022768,2]
[311797724,1705408240366,-246.15177983,0.00022768,2]
[311797725,1705408240375,-150.0,0.0002277,2]
[311797726,1705408240385,-150.0,0.00022771,2]
[311797727,1705408240394,-151.13,0.00022774,2]
[311797728,1705408240404,-319.97974695,0.00022775,2]
[311797729,1705408240412,-333.90240098,0.00022778,2]
[311797730,1705408240422,-150.0,0.0002279,2]
[311797731,1705408240431,-150.0,0.00022791,2]
[311797732,1705408240440,-527.03240952,0.00022791,7]
[311797733,1705408240451,-319.97974695,0.00022795,2]
[311797734,1705408240460,-267.11860865,0.000228,2]
[311797735,1705408240474,-150.0,0.00022801,2]
[311797736,1705408240483,-150.0,0.00022801,2]
[311797737,1705408240493,-150.0,0.00022805,2]
[311797738,1705408240502,-150.0,0.00022806,2]
[311797739,1705408240511,-150.0,0.00022807,2]
[311797740,1705408240521,-200.0,0.00022808,2]
[311797741,1705408240531,-4398.2246173,0.00022812,3]
[311797742,1705408240540,-200.0,0.00022812,2]
[311797743,1705408240549,-800.0,0.00022812,2]
[311797744,1705408240558,-150.0,0.00022813,2]
[311797745,1705408240568,-500.0,0.00022813,2]
[311797746,1705408240577,-200.0,0.00022813,2]
[311797747,1705408240586,-150.0,0.00022814,2]
[311797748,1705408240595,-500.0,0.00022815,2]
[311797749,1705408240604,-200.0,0.00022815,2]
[311797750,1705408240614,-200.0,0.00022815,2]
[311797751,1705408240623,-319.97974695,0.00022816,2]
[311797752,1705408240632,-150.0,0.00022818,2]
[311797753,1705408240642,-150.0,0.00022828,2]
[311797754,1705408240651,-150.0,0.00022831,2]
[311797755,1705408240660,-319.97974695,0.00022837,2]
[311797756,1705408240670,-150.0,0.00022845,2]
[311797757,1705408240680,-267.11860865,0.0002285,2]
[311797758,1705408240690,-150.0,0.00022857,2]
[311797759,1705408240700,-319.97974695,0.00022858,2]
[311797760,1705408240712,-150.0,0.00022859,2]
[311797761,1705408240722,-158.52,0.00022863,2]
[311797762,1705408240731,-838.0,0.00022864,2]
[311797763,1705408240741,-150.0,0.0002287,2]
[311797764,1705408240750,-150.0,0.00022875,2]
[311797765,1705408240760,-319.97974695,0.00022879,2]
[311797766,1705408240769,-150.0,0.0002288,2]
[311797767,1705408240779,-150.0,0.00022883,2]
[311797768,1705408240788,-1500.0,0.00022884,2]
[311797769,1705408240798,-1000.0,0.00022885,2]
[311797770,1705408240807,-1000.0,0.00022885,2]
[311797771,1705408240816,-1000.0,0.00022885,2]
[311797772,1705408240826,-1000.0,0.00022885,2]
[311797773,1705408240835,-1000.0,0.00022885,2]
[311797774,1705408240844,-1000.0,0.00022885,2]
[311797775,1705408240853,-590.6791,0.00022885,2]
[311797776,1705408240862,-500.0,0.00022885,2]
[311797777,1705408240874,-500.0,0.00022885,2]
[311797778,1705408240883,-500.0,0.00022885,2]
[311797779,1705408240892,-500.0,0.00022885,2]
[311797780,1705408240901,-500.0,0.00022885,2]
[311797781,1705408240910,-500.0,0.00022885,2]
[311797782,1705408240920,-500.0,0.00022885,2]
[311797783,1705408240929,-500.0,0.00022885,2]
[311797784,1705408240938,-500.0,0.00022885,2]
[311797785,1705408240947,-500.0,0.00022885,2]
[311797786,1705408240956,-500.0,0.00022885,2]
[311797787,1705408240967,-500.0,0.00022885,2]
[311797788,1705408240976,-500.0,0.00022885,2]
[311797789,1705408240985,-159.3188,0.00022885,2]
[311797790,1705408240994,-150.0,0.00022891,2]
[311797791,1705408241003,-1500.0,0.00022893,2]
[311797792,1705408241012,-46891.3986,0.00022894,2]
[311797793,1705408241022,-150.0,0.00022898,2]
[311797794,1705408241031,-250.0,0.00022898,2]
[311797795,1705408241040,-4025.6359,0.000229,2]
[311797796,1705408241050,-528.2326,0.000229,2]
[311797797,1705408241059,-19532.149095,0.000229,2]
[311797798,1705408241068,-319.97974695,0.000229,2]
[311797799,1705408241077,-150.89477317,0.000229,2]
[311797800,1705408241086,-150.89477314,0.000229,2]
[311797801,1705408241096,-150.21386034,0.000229,2]
[311797802,1705408241106,-150.0,0.00022901,2]
[311797803,1705408241115,-150.0,0.00022902,2]
[311797804,1705408241125,-150.0,0.00022903,2]
[311797805,1705408241135,-150.0,0.00022905,2]
[311797806,1705408241144,-150.0,0.00022906,2]
[311797807,1705408241155,-150.0,0.00022925,2]
[311797808,1705408241164,-150.0,0.00022925,2]
[311797809,1705408241174,-150.0,0.00022926,2]
[311797810,1705408241183,-150.0,0.0002293,2]
[311797811,1705408241193,-159.8,0.00022936,2]
[311797812,1705408241202,-150.0,0.00022944,2]
[311797813,1705408241212,-150.0,0.00022946,2]
[311797814,1705408241223,-150.0,0.00022954,2]
[311797815,1705408241233,-150.0,0.00022955,2]
[311797816,1705408241242,-150.0,0.00022956,2]
[311797817,1705408241252,-150.0,0.00022969,2]
[311797818,1705408241262,-150.89477314,0.0002297,2]
[311797819,1705408241271,-150.0,0.00022975,2]
[311797820,1705408241281,-10141.064,0.00022978,2]
[311797821,1705408241290,-1399.523,0.00022978,2]
[311797822,1705408241300,-150.0,0.00022978,2]
[311797823,1705408241309,-150.0,0.00022981,2]
[311797824,1705408241318,-150.0,0.00022985,2]
[311797825,1705408241327,-150.0,0.00022987,2]
[311797826,1705408241337,-150.0,0.00022987,2]
[311797827,1705408241346,-150.0,0.00022988,2]
[311797828,1705408241356,-150.0,0.00022988,2]
[311797829,1705408241365,-300.0,0.00022993,2]
[311797830,1705408241374,-300.0,0.00022993,2]
[311797831,1705408241383,-151.0,0.00022994,7]
[311797832,1705408241393,-151.0,0.00022994,7]
[311797833,1705408241402,-151.0,0.00022994,7]
[311797834,1705408241411,-151.0,0.00022994,7]
[311797835,1705408241420,-151.0,0.00022994,7]
[311797836,1705408241429,-151.0,0.00022994,7]
[311797837,1705408241439,-21496.4201544,0.00022994,2]
[311797838,1705408241448,-151.0,0.00022994,7]
[311797839,1705408241458,-262.526066,0.00022994,7]
[311797840,1705408241469,-262.526066,0.00022994,7]
[311797841,1705408241479,-151.0,0.00022994,7]
[311797842,1705408241489,-312.558765,0.00022994,7]
[311797843,1705408241500,-312.558765,0.00022994,7]
[311797844,1705408241509,-387.078513,0.00022994,7]
[311797845,1705408241518,-387.078513,0.00022994,7]
[311797846,1705408241527,-151.0,0.00022994,7]
[311797847,1705408241536,-151.0,0.00022994,7]
[311797848,1705408241546,-536891.79800717,0.00022994,2]
[311797849,1705408241609,-30878.81353035,0.00022994,2]
[311797850,1705408241622,-20232.09209855,0.00022994,2]
[311797851,1705408241634,-210623.65250299,0.00022994,2]
[311797852,1705408241646,-85783.46411096,0.00022994,2]
[311797859,1705408243133,-414.01914127,0.00022994,2]
[311797861,1705408243146,-864.25785869,0.00022994,2]
[311797869,1705408243419,-692.207205,0.00022994,2]
[311797870,1705408243431,-953.84846005,0.00022994,2]
[311797871,1705408243444,-1670.43387916,0.00022994,2]
[311797872,1705408243469,-2724.90826101,0.00022994,2]
[311797873,1705408243482,-656.6484,0.00022994,2]
[311797874,1705408243499,-1506.80421975,0.00022994,2]
[311797875,1705408243510,-314.999999,0.00022994,2]
[311797876,1705408243523,-969.81767263,0.00022994,2]
[311797877,1705408243544,-421.95609618,0.00022994,2]
[311797880,1705408244270,-267.11860865,0.000229,2]
[311797881,1705408244281,-741.4098664,0.00022994,2]
[311797882,1705408244293,-5636.90340328,0.00022994,2]
[311797883,1705408244305,-613.09825755,0.00022994,2]
[311797884,1705408244317,-371.88983172,0.00022994,2]
[311797885,1705408244330,-650.0,0.00022994,2]
[311797886,1705408244396,-3861.42427209,0.00022994,2]
[311797887,1705408244409,-616.1268203,0.00022994,2]
[311797888,1705408244423,-2955.95585094,0.00022994,2]
[311797889,1705408244436,-1000.0,0.00022994,2]
[311797890,1705408244448,-418.20152495,0.00022994,2]
[311797891,1705408244460,-4477.02314929,0.00022994,2]
[311797892,1705408244474,-5997.71369849,0.00022994,2]
[311797893,1705408244485,-382.25898754,0.00022994,2]
[311797894,1705408244502,-542.51008001,0.00022994,2]
[311797895,1705408244513,-87442.11507495,0.00022994,2]
[311797896,1705408244896,-4256.00053033,0.00022994,2]
[311797897,1705408244911,-524.35825845,0.00022994,2]
[311797898,1705408244923,-2762.71287719,0.00022994,2]
[311797899,1705408244933,-10840.0,0.00022994,2]
[311797900,1705408244946,-1055.23642804,0.00022994,2]
[311797912,1705408246316,-294.22,0.000225,2]
[311797913,1705408246328,-150.0,0.000225,2]
[311797914,1705408246338,-418.24,0.000225,2]
[311797915,1705408246348,-816.8,0.000226,2]
[311797916,1705408246359,-314.46,0.000226,2]
[311797917,1705408246369,-564.32029643,0.00022993,2]
[311797918,1705408246380,-5361.55230719,0.00022994,2]
[311797919,1705408246394,-782.12416548,0.00022994,2]
[311797920,1705408246407,-11695.93398219,0.00022994,2]
[311797921,1705408246419,-28562.22626119,0.00022994,2]
[311797922,1705408246430,-15564.47995162,0.00022994,2]
[311797923,1705408246466,-915.73984991,0.00022994,2]
[311797924,1705408246505,-2270.85211393,0.00022994,2]
[311797925,1705408246516,-1296.599175,0.00022994,2]
[311797926,1705408246568,-333.90240098,0.000229,2]
[311797927,1705408246577,-518429.93650433,0.00022994,2]
[311797928,1705408246587,-205.0,0.00022995,2]
[311797929,1705408246597,-150.0,0.00022996,2]
[311797930,1705408246606,-150.0,0.00022996,2]
[311797931,1705408246616,-150.0,0.00022997,2]
[311797932,1705408246626,-3308.59507699,0.00022998,2]
[311797933,1705408246635,-230.60882109,0.00022998,2]
[311797934,1705408246645,-200.25793547,0.00022998,2]
[311797935,1705408246654,-505.14833245,0.00022998,2]
[311797936,1705408246664,-1545.0688777,0.00022998,2]
[311797937,1705408246674,-9099.0382161,0.00022998,2]
[311797938,1705408246684,-150.0,0.00022998,2]
[311797939,1705408246694,-1091.2798327,0.00022998,2]
[311797940,1705408246704,-5824.8852884,0.00022998,2]
[311797941,1705408246713,-3295.05728793,0.00022999,2]
[311797942,1705408246733,-150.01,0.00022999,2]
[311797943,1705408246746,-300.0,0.00022999,2]
[311797944,1705408246756,-300.0,0.00022999,2]
[311797945,1705408246767,-300.0,0.00022999,2]
[311797946,1705408246777,-300.0,0.00022999,2]
[311797947,1705408246788,-300.0,0.00022999,2]
[311797948,1705408246799,-300.0,0.00022999,2]
[311797949,1705408246809,-300.0,0.00022999,2]
[311797950,1705408246819,-300.0,0.00022999,2]
[311797951,1705408246829,-300.0,0.00022999,2]
[311797952,1705408246839,-300.0,0.00022999,2]
[311797953,1705408246849,-300.0,0.00022999,2]
[311797954,1705408246859,-300.0,0.00022999,2]
[311797955,1705408246869,-300.0,0.00022999,2]
[311797956,1705408246878,-300.0,0.00022999,2]
[311797957,1705408246889,-476509.28347992,0.00023,2]
[311797958,1705408246903,-30679.62810188,0.00023,2]
[311797959,1705408246916,-21398.09054124,0.00023,2]
[311797960,1705408246928,-296.30780668,0.00023,2]
[311797961,1705408246997,196.81,0.00020999,2]
[311797964,1705408324297,200.0,0.000301,120]
[311797965,1705408356979,299.77217279,0.00021947,2]
[311797966,1705408373870,372.34,0.00021846,2]
[311797967,1705408374813,4138.13863079,0.00021825,2]
[311797968,1705408377272,246.15177983,0.00021825,2]
[311797969,1705408413887,205.0,0.00021995,2]
[311797970,1705408438904,4025.6359,0.00021947,2]
[311797971,1705408474188,206.0,0.00021995,2]
[311797972,1705408492472,156.69,0.00021626,2]
[311797974,1705408552277,387.51405155,0.00021947,2]
[311797975,1705408555873,158.47,0.00021866,2]
[311797976,1705408639139,552.92,0.00021554,2]
[311797977,1705408686806,21793.13,0.00021569,2]
[311797978,1705408702368,195.06,0.00019728,2]
[311797979,1705408702781,195.06,0.00021991,2]
[311797980,1705408743878,339.07479508,0.00021947,2]
[311797981,1705408765978,154.6,0.00021683,2]
[311797982,1705408826009,150.0,0.00021503,2]
[311797983,1705408826033,150.0,0.00021503,2]
[311797984,1705408826060,47.51,0.00021503,2]
[311797985,1705408933905,150.0,0.00021947,2]
[311797986,1705408933928,146.69044573,0.00021947,2]
[311797987,1705408965675,84004.1056,0.00021947,2]
[311797988,1705409028340,150.0,0.0002172,2]
[311797989,1705409028360,5.41,0.0002172,2]
[311797995,1705409063510,150.0,0.00021947,2]
[311797996,1705409063530,111.9455,0.00021947,2]
[311797997,1705409125918,150.0,0.00021947,2]
[311797998,1705409125940,109.60413997,0.00021947,2]
[311797999,1705409140585,557.66,0.00021427,2]
[311798000,1705409182189,150.0,0.00019514,2]
[311798001,1705409182213,25.55,0.00019514,2]
[311798002,1705409182409,175.55,0.00021778,2]
[311798003,1705409224462,154.6,0.00021566,2]
[311798004,1705409232432,150.0,0.00021515,2]
[311798005,1705409311823,202.23,0.00021538,2]
[311798006,1705409316456,344.8,0.00021525,2]
[311798007,1705409316941,227.1536225,0.00021947,2]
[311798008,1705409320005,544.40683217,0.00021515,7]
[311798009,1705409342138,544.40683217,0.00021515,7]
[311798010,1705409343056,233.12709957,0.00022,2]
[311798011,1705409350727,474.25500791,0.00022,2]
[311798012,1705409350942,4486.26727607,0.00022,2]
[311798013,1705409360309,1416.45270097,0.00022,2]
[311798014,1705409361903,2614.88594233,0.00022,2]
[311798015,1705409362359,155.0,0.00022,2]
[311798016,1705409363544,651.41875051,0.00022,2]
[311798017,1705409363998,544.40683217,0.00021515,7]
[311798018,1705409365790,697.65794099,0.00021999,2]
[311798019,1705409366517,417.97849528,0.00021999,2]
[311798020,1705409367818,342.94887286,0.00021999,2]
[311798021,1705409368904,155.0,0.00021999,2]
[311798022,1705409370422,557.45351255,0.00021935,2]
[311798023,1705409371089,155.0,0.00022,2]
[311798024,1705409372406,1040.8125891,0.00022,2]
[311798025,1705409373880,203.21930655,0.00022,2]
[311798026,1705409373992,32622.06438206,0.00022,2]
[311798027,1705409374015,744.35902827,0.00022,2]
[311798028,1705409374076,3858.29273374,0.00022,2]
[311798029,1705409375419,628.6804983,0.00022,2]
[311798030,1705409376201,155.0,0.00022,2]
[311798031,1705409379291,-150.0,0.00022001,2]
[311798032,1705409379422,-150.0,0.00022001,2]
[311798033,1705409379473,-27.01068005,0.00022001,2]
[311798034,1705409379494,-122.98931995,0.00022001,2]
[311798035,1705409379576,-150.0,0.00022001,2]
[311798036,1705409379629,-150.0,0.00022001,2]
[311798037,1705409379693,-120.1037433,0.00022001,2]
[311798038,1705409379714,-29.8962567,0.00022001,2]
[311798039,1705409379750,-150.0,0.00022001,2]
[311798040,1705409379775,-150.0,0.00022001,2]
[311798041,1705409379805,-150.0,0.00022001,2]
[311798042,1705409379846,-150.0,0.00022001,2]
[311798043,1705409379879,-150.0,0.00022001,2]
[311798044,1705409379911,-150.0,0.00022001,2]
[311798045,1705409379944,-150.0,0.00022001,2]
[311798046,1705409379972,-150.0,0.00022001,2]
[311798047,1705409380045,-150.0,0.00022001,2]
[311798048,1705409380141,-150.0,0.00022001,2]
[311798049,1705409380207,-150.0,0.00022001,2]
[311798050,1705409381836,-168.2099143,0.00022001,2]
[311798051,1705409384000,583.0812225,0.00022,7]
[311798052,1705409393237,493.68361252,0.00021825,2]
[311798053,1705409407172,587.4557,0.00021947,2]
[311798054,1705409410197,159.43,0.00021407,2]
[311798055,1705409414391,500.0,0.00021947,2]
[311798056,1705409415568,233.12709957,0.00022,2]
[311798057,1705409417812,329.57941636,0.00021947,2]
[311798058,1705409425379,450.0,0.0002149,2]
[311798059,1705409425513,4486.26727607,0.00022,2]
[311798061,1705409431442,-310.80054434,0.00022001,2]
[311798062,1705409431496,-485.39999995,0.00022001,2]
[311798070,1705409434104,225.94823342,0.00022,2]
[311798071,1705409434430,515.40790408,0.00022,2]
[311798072,1705409436877,2619.24962995,0.00022,2]
[311798073,1705409436937,2900.9485508,0.00022,2]
[311798074,1705409436987,160.61277548,0.00022,2]
[311798076,1705409437168,185.08024978,0.00021907,2]
[311798085,1705409437723,-20636.26033823,0.00022001,2]
[311798086,1705409437733,-300.0,0.00022007,2]
[311798087,1705409437747,-150.0,0.00022007,2]
[311798088,1705409437756,-150.0,0.00022007,2]
[311798089,1705409437770,-7241.1083359,0.00022023,2]
[311798090,1705409437779,-215.35384188,0.00022023,2]
[311798091,1705409437789,-150.0,0.00022027,2]
[311798092,1705409437798,-800.0,0.00022027,2]
[311798093,1705409437808,-186.41515541,0.00022034,2]
[311798094,1705409437817,-527.03240952,0.00022045,7]
[311798095,1705409437828,-204.15464862,0.00022045,2]
[311798096,1705409437840,-3928.82337372,0.00022045,2]
[311798097,1705409437850,-300.62032364,0.00022045,2]
[311798098,1705409437861,-410.19903303,0.00022045,2]
[311798099,1705409437873,-155.0,0.00022045,7]
[311798100,1705409437884,-158.0894022,0.00022045,2]
[311798101,1705409437895,-711.49718173,0.00022045,2]
[311798102,1705409437904,-27088.47253987,0.00022045,2]
[311798103,1705409437915,-318.525335,0.00022045,2]
[311798104,1705409437926,-765.15731892,0.00022045,2]
[311798105,1705409437937,-155.49951706,0.00022045,2]
[311798106,1705409437949,-6243.14931431,0.00022045,2]
[311798107,1705409437960,-155.0,0.00022045,2]
[311798108,1705409437970,-1146.10786252,0.00022045,2]
[311798109,1705409437980,-1830.0899859,0.00022045,2]
[311798110,1705409437990,-155.87766214,0.00022045,2]
[311798111,1705409437999,-155.0,0.00022045,2]
[311798112,1705409438009,-155.46805855,0.00022045,2]
[311798113,1705409438018,-1126.24697237,0.00022045,2]
[311798114,1705409438029,-526.14369271,0.00022045,2]
[311798115,1705409438039,-215.60720017,0.00022045,2]
[311798116,1705409438049,-161.94528276,0.00022045,2]
[311798117,1705409438059,-700.24680694,0.00022045,2]
[311798118,1705409438069,-155.37183511,0.00022045,2]
[311798119,1705409438082,-244.64133608,0.00022045,2]
[311798120,1705409438092,-155.46575048,0.00022045,2]
[311798121,1705409438101,-2610.59997605,0.00022045,2]
[311798122,1705409438120,-632.2971765,0.00022045,2]
[311798123,1705409438129,-4083.26130941,0.00022045,2]
[311798124,1705409438139,-682.66776446,0.00022045,2]
[311798125,1705409438149,-288.29851786,0.00022045,2]
[311798126,1705409438159,-360.54533661,0.00022045,2]
[311798127,1705409438169,-155.39285442,0.00022045,2]
[311798128,1705409438179,-4151.89837258,0.00022045,2]
[311798129,1705409438188,-223.68887622,0.00022045,2]
[311798130,1705409438198,-236.60772836,0.00022045,2]
[311798131,1705409438209,-235.98748933,0.00022045,2]
[311798132,1705409438219,-821.26413412,0.00022045,2]
[311798133,1705409438229,-1533.19135951,0.00022045,2]
[311798134,1705409438239,-357.21405415,0.00022045,2]
[311798135,1705409438249,-155.0,0.00022045,2]
[311798136,1705409438259,-1766.13596665,0.00022045,2]
[311798137,1705409438269,-284.94387403,0.00022045,2]
[311798138,1705409438279,-599.27979208,0.00022045,2]
[311798139,1705409438289,-522.36940647,0.00022045,2]
[311798140,1705409438299,-1598.58448135,0.00022045,2]
[311798141,1705409438309,-235.29587738,0.00022045,2]
[311798142,1705409438319,-500.89319127,0.00022045,2]
[311798143,1705409438328,-355.02113899,0.00022045,2]
[311798144,1705409438339,-386.61135731,0.00022045,2]
[311798145,1705409438348,-155.0,0.00022045,2]
[311798146,1705409438357,-265.7489314,0.00022045,2]
[311798147,1705409438367,-1041.95270537,0.00022045,2]
[311798148,1705409438377,-311.82193235,0.00022045,2]
[311798149,1705409438386,-196.30617543,0.00022045,2]
[311798150,1705409438397,-582.09933151,0.00022045,2]
[311798151,1705409438408,-155.48269807,0.00022045,2]
[311798152,1705409438419,-223.08028286,0.00022045,2]
[311798153,1705409438430,-183.98789616,0.00022045,2]
[311798154,1705409438440,-744.41382684,0.00022045,2]
[311798155,1705409438450,-425.1498834,0.00022045,2]
[311798156,1705409438460,-1106.8240953,0.00022045,2]
[311798157,1705409438471,-496.3767871,0.00022045,2]
[311798158,1705409438480,-183.31936431,0.00022045,2]
[311798159,1705409438491,-155.0,0.00022045,2]
[311798160,1705409438501,-156.79778886,0.00022045,2]
[311798161,1705409438511,-222.78190174,0.00022045,2]
[311798162,1705409438521,-452.47532212,0.00022045,2]
[311798163,1705409438532,-204.28991244,0.00022045,2]
[311798164,1705409438542,-187.13407335,0.00022045,2]
[311798165,1705409438551,-633.84130694,0.00022045,2]
[311798166,1705409438561,-982.01944508,0.00022045,2]
[311798167,1705409438571,-196.61301684,0.00022045,2]